Cogmind - Beta 15 @@@ ROGUE MODE // 2025.07.08 @ 10:15:12 Player: SuperSwiss Result: Destroyed self with Rocket Launcher Performance ------------- Evolutions (0) 0 Regions Visited (4) 800 Robots Destroyed (20) 100 Value Destroyed (441) 441 Prototype IDs (23) 460 Alien Tech Used (0) 0 Bonus (321) 321 TOTAL SCORE: 2122 Bonus ------- Follower Combat Kills 21 Aligned with FarCom 300 Cogmind --------- Core Integrity 0/250 Matter 201/300 Energy 100/100 System Corruption 0% Temperature Cool (0) Movement Core (450) Ox8 Location -9/Mines Parts ------- > --- POWER (1) -------- (None) > --- PROPULSION (2) --- (None) > --- UTILITY (2) ------ Large Storage Unit > --- WEAPON (2) ------- Grenade Launcher Rocket Launcher > --- INVENTORY (15) --- Light Treads Compact Wheel Humpback Structural Scanner Light Armor Plating Light Armor Plating YOLO Cannon Light Assault Rifle Light Assault Rifle Heavy Assault Rifle Light Cannon Makeshift Sword Peak State ------------ > --- POWER ------------ Light Ion Engine > --- PROPULSION ------- Light Treads Compact Wheel > --- UTILITY ---------- Large Storage Unit Light Armor Plating > --- WEAPON ----------- Light Assault Rifle Light Assault Rifle > --- INVENTORY -------- Light Treads Compact Wheel Structural Scanner Light Armor Plating Light Armor Plating Light Armor Plating YOLO Cannon Light Assault Rifle Heavy Assault Rifle Light Cannon Grenade Launcher Grenade Launcher Rocket Launcher Makeshift Sword [Rating: 10] Favorites ----------- Power Ion Engine Engine Ion Engine Propulsion Light Treads Treads Light Treads Wheel Compact Wheel Utility Large Storage Unit Device Seismic Detector Storage Large Storage Unit Protection Light Armor Plating Weapon Light Assault Rifle Ballistic Gun Light Assault Rifle Launcher Grenade Launcher Special Weapon Mining Laser Build | -11 -10 -10 -10 -9 ------- Run | Yrd Mat Min Exi Min Slots Evolved . | . . . . . Power . | . . . . . Propulsion . | . . . . . Utility . | . . . . . Weapon . | . . . . . Parts Attached 18 | 7 6 3 . 2 Power 2 | 1 . 1 . . Engine 2 | 1 . 1 . . Core . | . . . . . Reactor . | . . . . . Propulsion 4 | 2 2 . . . Treads 2 | 1 1 . . . Leg . | . . . . . Wheel 2 | 1 1 . . . Hover . | . . . . . Flight . | . . . . . Utility 6 | 2 3 1 . . Device 2 | 1 1 . . . Storage 2 | 1 1 . . . Processor . | . . . . . Hackware . | . . . . . Protection 2 | . 1 1 . . Artifact . | . . . . . Weapon 6 | 2 1 1 . 2 Energy Gun . | . . . . . Energy Cannon . | . . . . . Ballistic Gun 3 | 2 . 1 . . Ballistic Cannon . | . . . . . Launcher 2 | . . . . 2 Special Weapon 1 | . 1 . . . Impact Weapon . | . . . . . Slashing Weapon . | . . . . . Piercing Weapon . | . . . . . Special Melee Weapon . | . . . . . Unidentified Prototypes . | . . . . . Parts Lost 10 | . 1 4 . 5 Power 2 | . . 1 . 1 Propulsion 4 | . 1 1 . 2 Utility 2 | . . 1 . 1 Weapon 2 | . . 1 . 1 Highest Loss Streak 5 | . 1 3 . 5 To Critical Strikes . | . . . . . Average Backups 9 | 3 7 13 13 12 Power . | . 1 . . . Propulsion 2 | 1 2 1 2 2 Utility 2 | . 1 3 4 4 Weapon 4 | . 3 6 7 6 Tool/Special . | . . . . . Unused Backups 13 | . . 1 2 10 Power . | . . . . . Propulsion 2 | . . . . 2 Utility 4 | . . 1 . 3 Weapon 7 | . . . 2 5 Tool/Special . | . . . . . Average Slot Usage (%) 99 | . 100 99 100 92 Engine 13 | . 14 13 14 12 Treads 14 | . 15 14 14 11 Wheel 13 | . 12 13 14 12 Device 9 | . 13 7 . . Storage 14 | . 14 14 14 14 Protection 4 | . . 6 14 12 Ballistic Gun 27 | . 27 28 28 23 Peak Build Rating 10 | 7 8 8 10 10 Average Rating 7 | 5 7 7 9 9 On Entrance 6 | . 7 8 8 10 Naked Turns . | . . . . . Heaviest Build 31 | 14 31 31 28 28 Greatest Support 40 | 20 40 40 16 16 Greatest Overweight (x) 1 | . 1 1 1 1 Average Overweight (x) . | . . . 1 1 Largest Inventory Capacity 15 | 8 15 15 15 15 Average Capacity 14 | 7 14 15 15 15 Most Carried 15 | 5 11 14 15 15 Average Carried 10 | 3 7 13 14 14 Final Capacity 15 | 8 15 15 15 15 Final Carried 15 | 5 11 14 15 14 Class Distribution -------------------- 100% | Mutant Dominant Class ---------------- Mutant | -10/Materials Mutant | -10/Mines Mutant | -10/Exiles Mutant | -9/Mines Resources | -11 -10 -10 -10 -9 ----------- Run | Yrd Mat Min Exi Min Matter Collected 842 | 295 338 209 . . Remotely . | . . . . . Salvage Created 643 | 93 387 135 . 28 Parts 43 | 12 22 9 . . Haulers Intercepted 1 | . 1 . . . Recyclers Shooed . | . . . . . Parts Field Recycled . | . . . . . Retrieved Matter . | . . . . . Parts Self-Destructed . | . . . . . Prevented . | . . . . . Kills | -11 -10 -10 -10 -9 ------- Run | Yrd Mat Min Exi Min Combat Hostiles Destroyed 28 | . 10 4 . 14 Guns 14 | . 10 4 . . AOE 14 | . . . . 14 Classes Destroyed 6 | 1 3 1 . 1 Tunneler 5 | 5 . . . . Hauler 1 | . 1 . . . Swarmer 5 | . 3 2 . . Grunt 7 | . 7 . . . Sentry 2 | . . 2 . . Assembled 14 | . . . . 14 Best Kill Streak 14 | 2 4 2 . 14 Combat Bots Only 14 | . 4 2 . 14 Max Kills in Single Turn 4 | 1 1 1 . 4 Gunslinging . | . . . . . Exploded 4 | . . . . 4 Melee . | . . . . . Uniques/NPCs Destroyed . | . . . . . Combat | -11 -10 -10 -10 -9 -------- Run | Yrd Mat Min Exi Min Hostile Shots Fired 127 | . 75 29 . 23 Missed 36 | . 25 6 . 5 Hits 91 | . 50 23 . 18 Melee 5 | . . . . 5 Projectile 86 | . 50 23 . 13 Part Disruptions 1 | . . . . 1 Damage Taken 1228 | . 511 268 . 449 Core 264 | . 87 21 . 156 Absorbed by Shields . | . . . . . Core Remaining (%) 100 | 100 . . . . Volleys Fired 94 | 17 53 14 . 10 Largest 2 | 2 2 2 . 1 Hottest 100 | 40 100 40 . 33 Shots Fired 175 | 34 103 28 . 10 Gun 162 | 34 100 28 . . Cannon . | . . . . . Launcher 10 | . . . . 10 Special 3 | . 3 . . . Kinetic 162 | 34 100 28 . . Thermal 3 | . 3 . . . Explosive 10 | . . . . 10 Electromagnetic . | . . . . . Robot Hit Streak 11 | 8 8 11 . 4 Robot Miss Streak 5 | 1 5 3 . 3 Penetration Max . | . . . . . Secondary Targets 3 | . 1 2 . . Max Gunslinging Chain 1 | . 1 1 . . Shots Hit Robots 111 | 22 64 20 . 5 Core Hits 73 | 7 26 8 . 32 Critical Kills . | . . . . . Critical Parts Destroyed . | . . . . . Critical Strikes . | . . . . . Melee Attacks . | . . . . . Impact . | . . . . . Slashing . | . . . . . Piercing . | . . . . . Sneak Attacks . | . . . . . Combat Hostiles . | . . . . . Follow-up Attacks . | . . . . . Damage Inflicted 2152 | 229 705 188 . 1030 Guns 1122 | 229 705 188 . . Cannons . | . . . . . Explosions 1030 | . . . . 1030 Melee . | . . . . . Ramming . | . . . . . Kinetic 1122 | 229 705 188 . . Thermal . | . . . . . Explosive 1030 | . . . . 1030 Electromagnetic . | . . . . . Impact . | . . . . . Slashing . | . . . . . Piercing . | . . . . . Highest Corruption . | . . . . . Average Corruption . | . . . . . Corruption Purged . | . . . . . Corruption Blocked . | . . . . . Overload Shots . | . . . . . Overflow Damage 10 | . . . . 10 Projectiles . | . . . . . Explosions 10 | . . . . 10 Melee . | . . . . . Knockbacks . | . . . . . Impact . | . . . . . Kinetic . | . . . . . Secondary . | . . . . . Self-Inflicted Damage 146 | . . . . 146 Shots 5 | . . . . 5 Rammed . | . . . . . Targets Rammed . | . . . . . Kicked . | . . . . . Crushed . | . . . . . Highest Temperature 36 | . 36 19 . 11 Average Temperature 12 | . 14 7 . 6 Received Heat Transfer 270 | . 165 45 . 60 Siege Activations . | . . . . . Martial Activations . | . . . . . Shielding Activations . | . . . . . Robots Disrupted . | . . . . . Combat Hostiles . | . . . . . Robots Corrupted . | . . . . . Combat Hostiles . | . . . . . Parts Fried . | . . . . . Impact Corruptions . | . . . . . Robots Melted . | . . . . . Combat Hostiles . | . . . . . Parts Melted 1 | . . 1 . . Heat Transferred . | . . . . . Parts Sabotaged . | . . . . . Parts Stolen . | . . . . . Parts Stripped . | . . . . . Power Chain Reactions . | . . . . . Alert | -11 -10 -10 -10 -9 ------- Run | Yrd Mat Min Exi Min Maximum Alert Level . | . . . . . Low Security (%) 100 | 100 100 100 . 100 Level 1 . | . . . . . Level 2 . | . . . . . Level 3 . | . . . . . Level 4 . | . . . . . Level 5 . | . . . . . High Security . | . . . . . Max Security . | . . . . . Peak Influence 143 | 10 143 81 . 9 Initial 15 | . . 15 . . Average 37 | 1 53 21 . . Influence Increases 619 | 25 352 216 . 26 Destroy 0b10 Robot/C 340 | . 200 140 . . Destroy 0b10 Robot/NC 30 | 25 5 . . . Destroy Leader 62 | . 42 20 . . Allied During Kill 11 | . . 11 . . Successful Hack 27 | . 27 . . . Destroy Structure 29 | . 3 . . 26 Lose Combat Pursuer 120 | . 75 45 . . Influence Decreases 615 | 25 313 255 . 22 Entered New Map 24 | . . 24 . . Time Decay 551 | 25 303 222 . 1 Lost Part 39 | . 10 8 . 21 Lost Ally 1 | . . 1 . . Squads Dispatched 2 | . 2 . . . Investigation 1 | . 1 . . . Extermination . | . . . . . Reinforcement 1 | . 1 . . . Assault . | . . . . . Garrison . | . . . . . Intercept . | . . . . . Searches Triggered . | . . . . . Construction Impeded . | . . . . . Haulers Reinforced . | . . . . . Active Scanning Responses . | . . . . . Cargo Convoy Interrupts . | . . . . . Stealth | -11 -10 -10 -10 -9 --------- Run | Yrd Mat Min Exi Min Distress Signals 5 | . 5 . . . Communications Jammed . | . . . . . Distress Signals . | . . . . . Times Spotted 54 | . 27 9 . 18 Peak Tracking Total 12 | . 5 4 . 12 Tactical Retreats 5 | . 3 2 . . Traps | -11 -10 -10 -10 -9 ------- Run | Yrd Mat Min Exi Min Traps Triggered 1 | . 1 . . . Indirectly . | . . . . . Trap Hack Attempts . | . . . . . Triggered . | . . . . . Disarmed . | . . . . . Reprogrammed . | . . . . . Reused . | . . . . . Traps Extracted . | . . . . . Installed . | . . . . . Triggered . | . . . . . Machines | -11 -10 -10 -10 -9 ---------- Run | Yrd Mat Min Exi Min Machines Disabled 1 | . . 1 . . Max in Single Turn . | . . . . . Machines Repaired . | . . . . . Machines Dismantled . | . . . . . Machines Sabotaged . | . . . . . Overloaded Fab Kills . | . . . . . Hacking | -11 -10 -10 -10 -9 --------- Run | Yrd Mat Min Exi Min Machines Accessed 6 | . 4 . 2 . Terminals 4 | . 4 . . . Fabricators . | . . . . . Repair Stations . | . . . . . Recycling Units . | . . . . . Scanalyzers . | . . . . . Garrison Access . | . . . . . Total Hacks 26 | . 16 . 10 . Successful 19 | . 9 . 10 . Failed 6 | . 6 . . . Catastrophic 2 | . 2 . . . Database Lockouts 1 | . 1 . . . Manual 11 | . 10 . 1 . Terminals 16 | . 16 . . . Fabricators . | . . . . . Repair Stations . | . . . . . Recycling Units . | . . . . . Scanalyzers . | . . . . . Garrison Access . | . . . . . Terminal Hacks 15 | . 5 . 10 . Record 9 | . . . 9 . Robot Analysis 2 | . 2 . . . Locate Traps 1 | . 1 . . . Hauler Manifests 1 | . 1 . . . Zone Layout 1 | . 1 . . . Proto ID Catalog 1 | . . . 1 . Fabricator Hacks . | . . . . . Repair Station Hacks . | . . . . . Recycling Unit Hacks . | . . . . . Scanalyzer . | . . . . . Garrison Access Hacks . | . . . . . Unauthorized Hacks 4 | . 4 . . . Terminals 4 | . 4 . . . Botnet 1 | . 1 . . . Skim 3 | . 3 . . . Fabricators . | . . . . . Repair Stations . | . . . . . Recycling Units . | . . . . . Scanalyzers . | . . . . . Garrison Access . | . . . . . Data Cores Recovered . | . . . . . Used . | . . . . . Hacking Detections 4 | . 4 . . . Full Trace Events . | . . . . . Feedback Events . | . . . . . Feedback Blocked . | . . . . . Robot Schematics Acquired . | . . . . . Robots Built . | . . . . . Authchips . | . . . . . Time . | . . . . . Total Robot Build Rating . | . . . . . Part Schematics Acquired . | . . . . . Parts Built . | . . . . . Authchips . | . . . . . Time . | . . . . . Total Part Build Rating . | . . . . . Parts Repaired . | . . . . . Time . | . . . . . Parts Recycled . | . . . . . Recycled Matter . | . . . . . Retrieved Matter . | . . . . . Retrieved Components . | . . . . . Parts Scanalyzed . | . . . . . Part Schematics Acquired . | . . . . . Parts Damaged . | . . . . . Bothacking | -11 -10 -10 -10 -9 ------------ Run | Yrd Mat Min Exi Min Used RIF Installer . | . . . . . Robots Hacked . | . . . . . Non-combat . | . . . . . Combat . | . . . . . Robot Hacks Applied . | . . . . . Relay Couplers Released . | . . . . . Fabnet Peak Effective % . | . . . . . Robots Rewired . | . . . . . Allies Hacked . | . . . . . Hacks Repelled . | . . . . . Allies | -11 -10 -10 -10 -9 -------- Run | Yrd Mat Min Exi Min Total Allies 3 | . . 3 . . Largest Group 3 | . . 3 . . Highest-Rated Group 40 | . . 40 . . Highest-Rated Ally 16 | . . 16 . . Total Orders . | . . . . . Ally Attacks 16 | . . 16 . . Total Damage 147 | . . 147 . . Kills 3 | . . 3 . . Allies Corrupted . | . . . . . Allies Melted . | . . . . . Intel | -11 -10 -10 -10 -9 ------- Run | Yrd Mat Min Exi Min Active Infowar (turns) 1677 | 17 1253 407 . . Structural 2 | . 2 . . . Seismic 1675 | 17 1251 407 . . Robot Analysis Total 2 | . 2 . . . Derelict Logs Recovered 2 | . . 2 . . Drone Launches . | . . . . . Drone Recoveries . | . . . . . Exploration | -11 -10 -10 -10 -9 ------------- Run | Yrd Mat Min Exi Min Turns Passed 2755 | 196 1331 759 380 89 Spaces Moved 1856 | 99 790 580 328 59 Core 5 | 5 . . . . Treads 240 | 62 176 2 . . Legs . | . . . . . Wheels 1611 | 32 614 578 328 59 Hover . | . . . . . Flight . | . . . . . Fastest Speed 50 | 50 115 115 115 115 Average Speed 124 | 135 133 115 115 115 Slowest Speed 240 | 160 240 240 115 115 Overloaded Moves . | . . . . . Propulsion Burnouts . | . . . . . Robots Hopped . | . . . . . Potential Cave-ins . | . . . . . Cave-ins Triggered . | . . . . . Exploration Rate (%) 61 | 5 97 97 77 29 Regions Visited 4 Branch Regions 3 Pre-discovered Areas 2 | . . 1 1 . Known Exits Taken . | . . . . . Unknown Exits Taken 4 | 1 1 1 1 . Scrap Searched 1 | . . 1 . . Spaces Dug 3 | . 3 . . . Terrain Destroyed 45 | . 3 . . 42 Melee . | . . . . . Projectile 3 | . 3 . . . AOE 42 | . . . . 42 Terrain Rammed . | . . . . . Walls Destroyed . | . . . . . Machines Disabled . | . . . . . Actions | -11 -10 -10 -10 -9 --------- Run | Yrd Mat Min Exi Min Total 2132 | 127 956 646 332 71 Wait 119 | . 84 35 . . Move 1852 | 98 789 579 327 59 Hop . | . . . . . Pick Up 23 | 5 7 9 2 . Fast Attach 8 | 7 1 . . . Attach 6 | . 1 4 . 1 Detach . | . . . . . Swap 24 | . 20 3 . 1 Drop 6 | . 1 2 3 . Fire 94 | 17 53 14 . 10 Melee . | . . . . . Ram . | . . . . . Kick . | . . . . . Crush . | . . . . . Escape Stasis . | . . . . . Rewire . | . . . . . Trap . | . . . . . Miscellaneous . | . . . . . Route ------- -11/Scrapyard -10/Materials (discovered 4 exits: [*Mat x3] / [*Min]) -10/Mines (discovered 4 exits: [*Mat x2] / *Exi / [*Sub]) -10/Exiles -9/Mines History --------- Turn | Location | Event 16 | -11/Scrapyard | Discovered new exit (range 16) 197 | -11/Scrapyard | Entered Materials 236 | -10/Materials | Central database locked down 315 | -10/Materials | Build established: Mutant 484 | -10/Materials | Discovered new exit (range 16) 698 | -10/Materials | Discovered new exit (range 16) 1101 | -10/Materials | Discovered new exit (range 15) 1202 | -10/Materials | Discovered new exit (range 9) 1297 | -10/Materials | Derelicts attacked the area 1528 | -10/Materials | Entered Mines 1533 | -10/Mines | Assisted by bots powering up and referring to "LRC-V3" 1611 | -10/Mines | Found DCF Scrap (13 items) 1637 | -10/Mines | Discovered new exit (range 5) 1642 | -10/Mines | A weapon hastily lodged in a ceiling crevice suddenly fell to the ground 1730 | -10/Mines | Discovered new exit (range 7) 1744 | -10/Mines | Learned 4 Materials zone layouts 1763 | -10/Mines | Discovered new exit (range 10) 1874 | -10/Mines | Lost 3 allies 1881 | -10/Mines | Lost 3 parts (1p1n1w) 2023 | -10/Mines | Learned location of Zion (-6) 2059 | -10/Mines | Deemed a non-threat by the Exiles lab entrance 2060 | -10/Mines | Discovered new exit (range 5) 2106 | -10/Mines | Received a Rocket Launcher from a helpful Derelict 2287 | -10/Mines | Entered Exiles 2316 | -10/Exiles | Met 8R-AWN 2335 | -10/Exiles | Met EX-HEX 2374 | -10/Exiles | Met EX-BIN 2389 | -10/Exiles | Aligned with FarCom system 2390 | -10/Exiles | Given EX-Vault access code 2419 | -10/Exiles | Opened EX-Vault 2426 | -10/Exiles | Found YOLO Cannon 2450 | -10/Exiles | Warned to stay clear of 0b10 Research branches 2482 | -10/Exiles | Met EX-DEC 2529 | -10/Exiles | Visited The Gauntlet 2654 | -10/Exiles | Discovered new exit (range 14) 2667 | -10/Exiles | Left Exiles lab with YOLO Cannon 2667 | -10/Exiles | Entered Mines 2680 | -9/Mines | Met a Derelict bent on vengeance 2711 | -9/Mines | Assembled infested the area 2749 | -9/Mines | Core integrity fell below 50% 2753 | -9/Mines | Core integrity fell below 20% 2756 | -9/Mines | Destroyed self with Rocket Launcher Last Messages --------------- 02745_ as-20645 destroyed. 02745_ as-84729 destroyed. 02745_ Com. Wheel destroyed. 02747_ Lgt. Armor Plating destroyed. 02747_ Destroyed Lgt. Armor Plating. 02747_ Lgt. Ion Engine destroyed. 02747_ Destroyed Lgt. Ion Engine. 02747_ Lgt. Assault Rifle destroyed. 02750_ as-77304 destroyed. 02750_ as-78472 destroyed. 02750_ as-31266 destroyed. 02750_ as-64710 destroyed. 02752_ Destroyed Asb. Blade. 02752_ as-92895 destroyed. 02752_ as-97735 destroyed. 02752_ as-48423 destroyed. 02752_ as-11624 destroyed. 02754_ Destroyed Asb. Hover Unit. 02755_ The unstable cave ceiling collapses. 02756_ as-85661 destroyed. Map ----- +----------------------------------------------------+ | ??????????????????????????????????? ?????????## | | ??????????????????????????????????? ?????????? | | ??????????????????????????????????? #?????????? | | ??????????????????????????????????? #?????????? | | ???????????????????????????????????# #?#???????? | | ???????????????????????????????????# ## ???????? | | ???????????????????????????????##### # ????????? | | ??????????????????????????????## ????????? | | ??????????????????????????????# ????????# | | ???????????????????????????????# ?????????# | | ????????????????????????????????# #?????????# | | ?????????????????????????????????# #????????## | | ????????????????? ???????????????# ########## | | ??????????????? ??????????????# | | ???????????? ?????????????## | | ????????????? ???????????## ### ##### | | ????????????? ???????????# #?# ##### | | ?????????????## ?????????## ### | | ?????????????# ????????## ########### | | ?????????????# ##?????## #??????? | | ?????????????# a ##???# #??????? | | ?????????????# a ###?# #??????? | | ??????????????# a ?## ##??????? | | ??????????????# # ### ##???????? | | ??????????????## % % # #????????? | | ??????????????# @ ### #????????? | | ?????????????# ####?## ##????????? | | ?????????????# ###??????###?????????? | | ?????????????# #### ### ##????????????????????? | | ???????????????????##????##?????????????????????? | | ????????????????????????????????????????????????? | | | | | | | | | | | | | | | | | | | | | | | | | | | | | | | | | | | | | | | +----------------------------------------------------+ Best States ------------- Heat Dissipation 25 Energy Generation 10 Energy Capacity 250 Matter Stores 300 Matter Capacity 300 Sight Range 16 Terrain Scan Density 10 Armor Coverage 150 Evasion (%) 40 Recoil Reduction 2 Item Schematics ----------------- None Robot Schematics ------------------ None Fabricated ------------ Nothing Repaired ---------- Nothing Alien Tech Used ----------------- None Achievements -------------- None Challenges ------------ None Game ------ Seed AntigravDisintegrationTrap Manual? 0 Play Time 00:24:45 Cumulative 119.2 hours Start 2025.07.08 @ 09:50:23 End 2025.07.08 @ 10:15:12 Sessions 1 Manual Loads 0 Difficulty Rogue Special Mode None Game No. 98 Rogue 95 Adventurer 0 Explorer 3 Win Type - Total 1 Types 1/0/0/0/0/0/0/0/0/0 Lore% 24 Gallery% 46 Achievement% 44 Wizard Run 0 Options --------- Layout 0 ASCII 0 Keyboard 0 Movement Numpad Keybinds 0 Fullscreen 2 Font 16/SmallcapsGlow Map View 88x55 Zoom Use 0% Tactical HUD 1 Map Filters NONE Filters NONE Steam 1 RUN: d51e6d68-b959-4b31-8b7e-3d2bfa51a18b